[Event "Titled Tuesday Blitz April 18 Late 2023"]
[White "ATM622"]
[Black "Nakamura, Hikaru"]
[BlackFideId "2016192"]
[WhiteElo "2508"]
[BlackElo "2885"]
[Result "0-1"]
[Round "01"]
[TimeControl "180+2"]
[Date "2023.04.18"]
[WhiteClock "0:00:01"]
[BlackClock "0:01:51"]

1. d4 {[%clk 0:02:56]}  Nf6 {[%clk 0:02:59]} 2. c4 {[%clk 0:02:56]}  c5 {[%clk 0:02:59]} 3. d5 {[%clk 0:02:56]}  b5 {[%clk 0:02:59]} 4. cxb5 {[%clk 0:02:56]}  a6 {[%clk 0:03:00]} 5. e3 {[%clk 0:02:56]}  g6 {[%clk 0:03:00]} 6. Nf3 {[%clk 0:02:55]}  Bg7 {[%clk 0:03:00]} 7. Nc3 {[%clk 0:02:54]}  axb5 {[%clk 0:02:57]} 8. Bxb5 {[%clk 0:02:53]}  Qa5 {[%clk 0:02:57]} 9. Bd2 {[%clk 0:02:52]}  Ba6 {[%clk 0:02:52]} 10. Bxa6 {[%clk 0:02:50]}  Qxa6 {[%clk 0:02:52]} 11. Qe2 {[%clk 0:02:49]}  d6 {[%clk 0:02:49]} 12. Qxa6 {[%clk 0:02:47]}  Nxa6 {[%clk 0:02:50]} 13. O-O {[%clk 0:02:46]}  Kd7 {[%clk 0:02:44]} 14. a4 {[%clk 0:02:41]}  Rhb8 {[%clk 0:02:42]} 15. Rab1 {[%clk 0:02:29]}  c4 {[%clk 0:02:43]} 16. Nd4 {[%clk 0:02:24]}  Nb4 {[%clk 0:02:41]} 17. b3 {[%clk 0:02:13]}  cxb3 {[%clk 0:02:38]} 18. Rxb3 {[%clk 0:02:09]}  Nbxd5 {[%clk 0:02:38]} 19. Rxb8 {[%clk 0:01:33]}  Rxb8 {[%clk 0:02:39]} 20. Nxd5 {[%clk 0:01:30]}  Nxd5 {[%clk 0:02:39]} 21. Nb5 {[%clk 0:01:30]}  Nb6 {[%clk 0:02:38]} 22. a5 {[%clk 0:01:26]}  Nc4 {[%clk 0:02:38]} 23. Bc3 {[%clk 0:00:50]}  Rxb5 {[%clk 0:02:36]} 24. Bxg7 {[%clk 0:00:50]}  Rxa5 {[%clk 0:02:36]} 25. h4 {[%clk 0:00:43]}  f6 {[%clk 0:02:34]} 26. Rc1 {[%clk 0:00:32]}  Nb6 {[%clk 0:02:27]} 27. g3 {[%clk 0:00:27]}  Rh5 {[%clk 0:02:27]} 28. Rb1 {[%clk 0:00:24]}  Nd5 {[%clk 0:02:26]} 29. Rb8 {[%clk 0:00:22]}  Ke6 {[%clk 0:02:26]} 30. e4 {[%clk 0:00:18]}  Nc3 {[%clk 0:02:27]} 31. f3 {[%clk 0:00:19]}  Kf7 {[%clk 0:02:27]} 32. Bh8 {[%clk 0:00:17]}  Rb5 {[%clk 0:02:23]} 33. Ra8 {[%clk 0:00:15]}  Rb2 {[%clk 0:02:23]} 34. g4 {[%clk 0:00:13]}  Ne2+ {[%clk 0:02:23]} 35. Kf1 {[%clk 0:00:13]}  Nd4 {[%clk 0:02:19]} 36. f4 {[%clk 0:00:12]}  Ne2 {[%clk 0:02:19]} 37. e5 {[%clk 0:00:10]}  Ng3+ {[%clk 0:02:01]} 38. Kg1 {[%clk 0:00:07]}  Ne4 {[%clk 0:01:58]} 39. exf6 {[%clk 0:00:03]}  Nxf6 {[%clk 0:01:59]} 40. g5 {[%clk 0:00:03]}  Rb1+ {[%clk 0:01:59]} 41. Kg2 {[%clk 0:00:03]}  Nd5 {[%clk 0:01:59]} 42. Kg3 {[%clk 0:00:03]}  Rb3+ {[%clk 0:01:59]} 43. Kf2 {[%clk 0:00:02]}  Nxf4 {[%clk 0:01:59]} 44. Ba1 {[%clk 0:00:01]}  Rb1 {[%clk 0:01:56]} 45. Bc3 {[%clk 0:00:01]}  Rc1 {[%clk 0:01:56]} 46. Bd4 {[%clk 0:00:01]}  Rc4 {[%clk 0:01:50]} 47. Be3 {[%clk 0:00:01]}  Nd5 {[%clk 0:01:51]} 0-1


[Site "https://www.chess.com"]

[Event "Titled Tuesday Blitz April 18 Late 2023"]
[White "Naroditsky, Daniel"]
[Black "Ronka, Erik"]
[WhiteFideId "2026961"]
[BlackFideId "505080"]
[WhiteElo "2633"]
[BlackElo "2264"]
[Result "1-0"]
[Round "01"]
[TimeControl "180+2"]
[Date "2023.04.18"]
[WhiteClock "0:02:30"]
[BlackClock "0:01:08"]

1. d4 {[%clk 0:03:00]}  d5 {[%clk 0:03:00]} 2. Nc3 {[%clk 0:03:00]}  Nf6 {[%clk 0:02:59]} 3. Bf4 {[%clk 0:03:00]}  c5 {[%clk 0:03:00]} 4. e4 {[%clk 0:03:01]}  Nxe4 {[%clk 0:02:53]} 5. Nxe4 {[%clk 0:03:01]}  dxe4 {[%clk 0:02:53]} 6. dxc5 {[%clk 0:03:01]}  Qa5+ {[%clk 0:02:54]} 7. c3 {[%clk 0:03:02]}  Qxc5 {[%clk 0:02:53]} 8. Qa4+ {[%clk 0:03:02]}  Nc6 {[%clk 0:02:52]} 9. Qxe4 {[%clk 0:03:02]}  g6 {[%clk 0:02:31]} 10. Nf3 {[%clk 0:02:59]}  Bg7 {[%clk 0:02:29]} 11. Rd1 {[%clk 0:02:59]}  O-O {[%clk 0:02:21]} 12. Be3 {[%clk 0:02:59]}  Qf5 {[%clk 0:02:08]} 13. Qa4 {[%clk 0:02:48]}  Qg4 {[%clk 0:01:49]} 14. Qb3 {[%clk 0:02:34]}  b6 {[%clk 0:01:40]} 15. h3 {[%clk 0:02:31]}  Qg5 {[%clk 0:01:08]} 16. Nxg5 {[%clk 0:02:30]} 1-0


[Site "https://www.chess.com"]

[Event "Titled Tuesday Blitz April 18 Late 2023"]
[White "Karas, Marek"]
[Black "Caruana, Fabiano"]
[WhiteFideId "14928558"]
[BlackFideId "2020009"]
[WhiteElo "2233"]
[BlackElo "2837"]
[Result "0-1"]
[Round "01"]
[TimeControl "180+2"]
[Date "2023.04.18"]
[WhiteClock "0:00:15"]
[BlackClock "0:01:33"]

1. d4 {[%clk 0:03:00]}  Nf6 {[%clk 0:02:59]} 2. Nf3 {[%clk 0:03:00]}  d6 {[%clk 0:02:59]} 3. Nc3 {[%clk 0:02:56]}  Bf5 {[%clk 0:02:57]} 4. e3 {[%clk 0:02:56]}  g6 {[%clk 0:02:56]} 5. Bd3 {[%clk 0:02:56]}  Bxd3 {[%clk 0:02:56]} 6. Qxd3 {[%clk 0:02:57]}  c6 {[%clk 0:02:56]} 7. O-O {[%clk 0:02:51]}  Bg7 {[%clk 0:02:56]} 8. e4 {[%clk 0:02:52]}  O-O {[%clk 0:02:57]} 9. Bg5 {[%clk 0:02:45]}  h6 {[%clk 0:02:53]} 10. Bxf6 {[%clk 0:02:38]}  Bxf6 {[%clk 0:02:50]} 11. Rad1 {[%clk 0:02:30]}  Nd7 {[%clk 0:02:49]} 12. Rfe1 {[%clk 0:02:29]}  Qc7 {[%clk 0:02:48]} 13. Qe3 {[%clk 0:02:19]}  Bg7 {[%clk 0:02:47]} 14. e5 {[%clk 0:02:15]}  dxe5 {[%clk 0:02:44]} 15. Nxe5 {[%clk 0:02:15]}  Rad8 {[%clk 0:02:39]} 16. Nxd7 {[%clk 0:02:06]}  Rxd7 {[%clk 0:02:37]} 17. Ne2 {[%clk 0:01:39]}  Rfd8 {[%clk 0:02:36]} 18. Rd3 {[%clk 0:01:30]}  e5 {[%clk 0:02:34]} 19. Red1 {[%clk 0:01:22]}  exd4 {[%clk 0:02:32]} 20. Nxd4 {[%clk 0:01:22]}  Qb6 {[%clk 0:02:23]} 21. Nb3 {[%clk 0:01:01]}  Qxe3 {[%clk 0:02:20]} 22. fxe3 {[%clk 0:01:02]}  Rxd3 {[%clk 0:02:20]} 23. Rxd3 {[%clk 0:00:34]}  Rxd3 {[%clk 0:02:06]} 24. cxd3 {[%clk 0:00:35]}  b6 {[%clk 0:01:51]} 25. d4 {[%clk 0:00:33]}  f5 {[%clk 0:01:51]} 26. Kf1 {[%clk 0:00:33]}  Kf7 {[%clk 0:01:52]} 27. Ke2 {[%clk 0:00:33]}  Ke6 {[%clk 0:01:52]} 28. Kd3 {[%clk 0:00:34]}  Kd5 {[%clk 0:01:52]} 29. Nc1 {[%clk 0:00:30]}  c5 {[%clk 0:01:37]} 30. dxc5 {[%clk 0:00:29]}  Kxc5 {[%clk 0:01:38]} 31. Nb3+ {[%clk 0:00:26]}  Kd5 {[%clk 0:01:37]} 32. Nd4 {[%clk 0:00:18]}  Bxd4 {[%clk 0:01:36]} 33. exd4 {[%clk 0:00:19]}  f4 {[%clk 0:01:36]} 34. b3 {[%clk 0:00:18]}  g5 {[%clk 0:01:35]} 35. h3 {[%clk 0:00:18]}  h5 {[%clk 0:01:34]} 36. a3 {[%clk 0:00:18]}  g4 {[%clk 0:01:33]} 37. hxg4 {[%clk 0:00:18]}  hxg4 {[%clk 0:01:33]} 38. a4 {[%clk 0:00:17]}  a5 {[%clk 0:01:33]} 39. Kc3 {[%clk 0:00:15]}  f3 {[%clk 0:01:33]} 0-1


[Site "https://www.chess.com"]

[Event "Titled Tuesday Blitz April 18 Late 2023"]
[White "Rios Escobar, Adan"]
[Black "Duda, Jan-Krzysztof"]
[WhiteFideId "3403645"]
[BlackFideId "1170546"]
[WhiteElo "2503"]
[BlackElo "2790"]
[Result "0-1"]
[Round "01"]
[TimeControl "180+2"]
[Date "2023.04.18"]
[WhiteClock "0:00:01"]
[BlackClock "0:00:11"]

1. d4 {[%clk 0:02:57]}  f5 {[%clk 0:02:59]} 2. g3 {[%clk 0:02:56]}  Nf6 {[%clk 0:02:59]} 3. Nf3 {[%clk 0:02:54]}  g6 {[%clk 0:02:58]} 4. Bg2 {[%clk 0:02:55]}  Bg7 {[%clk 0:02:59]} 5. b3 {[%clk 0:02:55]}  O-O {[%clk 0:02:59]} 6. Bb2 {[%clk 0:02:55]}  d6 {[%clk 0:02:58]} 7. O-O {[%clk 0:02:56]}  a5 {[%clk 0:02:53]} 8. a3 {[%clk 0:02:53]}  c6 {[%clk 0:02:50]} 9. Nbd2 {[%clk 0:02:51]}  Nbd7 {[%clk 0:02:40]} 10. Re1 {[%clk 0:02:44]}  d5 {[%clk 0:02:33]} 11. Ng5 {[%clk 0:02:13]}  Nb8 {[%clk 0:02:24]} 12. Ngf3 {[%clk 0:02:07]}  Ne4 {[%clk 0:02:19]} 13. Ne5 {[%clk 0:02:05]}  Nd7 {[%clk 0:02:16]} 14. Nd3 {[%clk 0:01:58]}  e6 {[%clk 0:02:14]} 15. e3 {[%clk 0:01:50]}  Qe7 {[%clk 0:02:04]} 16. f3 {[%clk 0:01:47]}  Nxd2 {[%clk 0:01:58]} 17. Qxd2 {[%clk 0:01:48]}  Nf6 {[%clk 0:01:57]} 18. a4 {[%clk 0:01:41]}  Re8 {[%clk 0:01:55]} 19. Ba3 {[%clk 0:01:24]}  Qc7 {[%clk 0:01:54]} 20. Ne5 {[%clk 0:01:23]}  Nd7 {[%clk 0:01:40]} 21. Nd3 {[%clk 0:01:23]}  e5 {[%clk 0:01:38]} 22. dxe5 {[%clk 0:01:17]}  Nxe5 {[%clk 0:01:39]} 23. Nxe5 {[%clk 0:01:13]}  Bxe5 {[%clk 0:01:35]} 24. Rad1 {[%clk 0:01:10]}  Be6 {[%clk 0:01:34]} 25. Bc5 {[%clk 0:01:03]}  b6 {[%clk 0:01:24]} 26. Bd4 {[%clk 0:01:03]}  Rad8 {[%clk 0:01:25]} 27. Bxe5 {[%clk 0:01:00]}  Qxe5 {[%clk 0:01:25]} 28. Qd4 {[%clk 0:01:00]}  Qc7 {[%clk 0:01:19]} 29. f4 {[%clk 0:00:45]}  Bf7 {[%clk 0:01:18]} 30. Qb2 {[%clk 0:00:39]}  Re6 {[%clk 0:01:03]} 31. Kf2 {[%clk 0:00:38]}  Rde8 {[%clk 0:00:59]} 32. Qd4 {[%clk 0:00:34]}  h6 {[%clk 0:00:54]} 33. h4 {[%clk 0:00:33]}  Kh7 {[%clk 0:00:54]} 34. Bf3 {[%clk 0:00:32]}  R6e7 {[%clk 0:00:32]} 35. Qf6 {[%clk 0:00:24]}  Re6 {[%clk 0:00:28]} 36. Qd4 {[%clk 0:00:23]}  h5 {[%clk 0:00:27]} 37. Qd2 {[%clk 0:00:19]}  Qe7 {[%clk 0:00:26]} 38. Qd4 {[%clk 0:00:17]}  c5 {[%clk 0:00:23]} 39. Qd2 {[%clk 0:00:17]}  Rd6 {[%clk 0:00:21]} 40. c3 {[%clk 0:00:15]}  Qf6 {[%clk 0:00:20]} 41. Qc2 {[%clk 0:00:12]}  Red8 {[%clk 0:00:20]} 42. Rd3 {[%clk 0:00:12]}  c4 {[%clk 0:00:10]} 43. bxc4 {[%clk 0:00:10]}  dxc4 {[%clk 0:00:11]} 44. Rd4 {[%clk 0:00:10]}  Re8 {[%clk 0:00:10]} 45. Red1 {[%clk 0:00:10]}  Rde6 {[%clk 0:00:10]} 46. Re1 {[%clk 0:00:06]}  Qe7 {[%clk 0:00:10]} 47. Rxc4 {[%clk 0:00:05]}  Rxe3 {[%clk 0:00:10]} 48. Rd4 {[%clk 0:00:01]}  Rxe1 {[%clk 0:00:10]} 49. Qd2 {[%clk 0:00:01]}  Qe3+ {[%clk 0:00:10]} 50. Qxe3 {[%clk 0:00:01]}  R1xe3 {[%clk 0:00:11]} 51. Rd7 {[%clk 0:00:02]}  R3e7 {[%clk 0:00:11]} 52. Rd6 {[%clk 0:00:02]}  Re6 {[%clk 0:00:11]} 53. Rd7 {[%clk 0:00:02]}  Kg7 {[%clk 0:00:12]} 54. Rb7 {[%clk 0:00:02]}  R8e7 {[%clk 0:00:12]} 55. Rb8 {[%clk 0:00:02]}  Rd6 {[%clk 0:00:12]} 56. Rc8 {[%clk 0:00:02]}  Rd2+ {[%clk 0:00:12]} 57. Kf1 {[%clk 0:00:02]}  Bc4+ {[%clk 0:00:12]} 58. Kg1 {[%clk 0:00:01]}  Re1# {[%clk 0:00:11]} 0-1


[Site "https://www.chess.com"]

[Event "Titled Tuesday Blitz April 18 Late 2023"]
[White "Silva, Caio Henrique Angelico"]
[Black "Andreikin, Dmitry"]
[WhiteFideId "22777210"]
[BlackFideId "4158814"]
[WhiteElo "2096"]
[BlackElo "2736"]
[Result "0-1"]
[Round "01"]
[TimeControl "180+2"]
[Date "2023.04.18"]
[WhiteClock "0:01:44"]
[BlackClock "0:02:40"]

1. Nf3 {[%clk 0:02:59]}  d5 {[%clk 0:02:59]} 2. g3 {[%clk 0:02:59]}  Nf6 {[%clk 0:03:00]} 3. Bg2 {[%clk 0:03:00]}  e6 {[%clk 0:03:00]} 4. O-O {[%clk 0:03:00]}  Be7 {[%clk 0:03:01]} 5. d4 {[%clk 0:03:01]}  O-O {[%clk 0:03:02]} 6. c4 {[%clk 0:03:02]}  c6 {[%clk 0:03:01]} 7. Nc3 {[%clk 0:03:00]}  Nbd7 {[%clk 0:02:59]} 8. Nd2 {[%clk 0:02:58]}  b5 {[%clk 0:02:58]} 9. cxb5 {[%clk 0:02:56]}  cxb5 {[%clk 0:02:59]} 10. Nxb5 {[%clk 0:02:54]}  Qb6 {[%clk 0:02:59]} 11. Nc3 {[%clk 0:02:24]}  Qxd4 {[%clk 0:02:58]} 12. e4 {[%clk 0:02:23]}  Ba6 {[%clk 0:02:57]} 13. Re1 {[%clk 0:02:20]}  Bc5 {[%clk 0:02:49]} 14. Qf3 {[%clk 0:02:03]}  Ne5 {[%clk 0:02:46]} 15. Qf4 {[%clk 0:01:50]}  Nd3 {[%clk 0:02:45]} 16. Nb3 {[%clk 0:01:45]}  Qxf2+ {[%clk 0:02:44]} 17. Qxf2 {[%clk 0:01:44]}  Bxf2+ {[%clk 0:02:45]} 18. Kh1 {[%clk 0:01:45]}  Bxe1 {[%clk 0:02:45]} 19. exd5 {[%clk 0:01:44]}  Bxc3 {[%clk 0:02:41]} 20. bxc3 {[%clk 0:01:44]}  Nxd5 {[%clk 0:02:40]} 0-1


[Site "https://www.chess.com"]

[Event "Titled Tuesday Blitz April 18 Late 2023"]
[White "Erzhanov, Arman"]
[Black "Sarana, Alexey"]
[WhiteFideId "4138821"]
[BlackFideId "24133795"]
[WhiteElo "2138"]
[BlackElo "2714"]
[Result "1/2-1/2"]
[Round "01"]
[TimeControl "180+2"]
[Date "2023.04.18"]
[WhiteClock "0:00:05"]
[BlackClock "0:00:28"]

1. e4 {[%clk 0:02:25]}  c5 {[%clk 0:02:59]} 2. Nf3 {[%clk 0:02:24]}  d6 {[%clk 0:03:00]} 3. Bb5+ {[%clk 0:02:20]}  Bd7 {[%clk 0:03:00]} 4. Bxd7+ {[%clk 0:02:20]}  Nxd7 {[%clk 0:03:01]} 5. O-O {[%clk 0:02:19]}  e6 {[%clk 0:03:01]} 6. b3 {[%clk 0:02:17]}  Be7 {[%clk 0:03:01]} 7. Bb2 {[%clk 0:02:17]}  Bf6 {[%clk 0:03:02]} 8. c3 {[%clk 0:02:00]}  Ne7 {[%clk 0:03:02]} 9. d4 {[%clk 0:02:01]}  Nc6 {[%clk 0:03:03]} 10. d5 {[%clk 0:01:57]}  exd5 {[%clk 0:03:00]} 11. exd5 {[%clk 0:01:57]}  Nce5 {[%clk 0:02:59]} 12. Nfd2 {[%clk 0:01:57]}  O-O {[%clk 0:02:52]} 13. Ne4 {[%clk 0:01:57]}  c4 {[%clk 0:02:42]} 14. Nxd6 {[%clk 0:01:48]}  Nc5 {[%clk 0:02:41]} 15. Nxc4 {[%clk 0:01:45]}  Nxc4 {[%clk 0:02:35]} 16. bxc4 {[%clk 0:01:46]}  Re8 {[%clk 0:02:35]} 17. Na3 {[%clk 0:01:41]}  Re4 {[%clk 0:02:25]} 18. Re1 {[%clk 0:01:38]}  Qb6 {[%clk 0:02:21]} 19. Rb1 {[%clk 0:01:34]}  Rae8 {[%clk 0:02:17]} 20. Rxe4 {[%clk 0:01:34]}  Nxe4 {[%clk 0:02:18]} 21. Qc2 {[%clk 0:01:22]}  Nd6 {[%clk 0:01:49]} 22. Ba1 {[%clk 0:01:16]}  Qa5 {[%clk 0:01:46]} 23. Nb5 {[%clk 0:01:12]}  Nxc4 {[%clk 0:01:45]} 24. Qd3 {[%clk 0:00:34]}  Qxa2 {[%clk 0:01:42]} 25. d6 {[%clk 0:00:23]}  a6 {[%clk 0:01:40]} 26. Nc7 {[%clk 0:00:13]}  Rd8 {[%clk 0:01:38]} 27. Re1 {[%clk 0:00:09]}  Ne5 {[%clk 0:01:24]} 28. Qd1 {[%clk 0:00:05]}  Qc4 {[%clk 0:01:17]} 29. Nd5 {[%clk 0:00:04]}  Rxd6 {[%clk 0:01:12]} 30. Nxf6+ {[%clk 0:00:04]}  gxf6 {[%clk 0:01:13]} 31. Qxd6 {[%clk 0:00:04]}  Qf4 {[%clk 0:01:10]} 32. Qd4 {[%clk 0:00:04]}  Qg5 {[%clk 0:01:09]} 33. Qe3 {[%clk 0:00:05]}  Qf5 {[%clk 0:01:09]} 34. Qg3+ {[%clk 0:00:05]}  Ng6 {[%clk 0:01:08]} 35. c4 {[%clk 0:00:06]}  h5 {[%clk 0:01:08]} 36. Qf3 {[%clk 0:00:06]}  Qxf3 {[%clk 0:01:04]} 37. gxf3 {[%clk 0:00:06]}  Nh4 {[%clk 0:01:05]} 38. Re7 {[%clk 0:00:06]}  Nxf3+ {[%clk 0:01:04]} 39. Kg2 {[%clk 0:00:06]}  Nd2 {[%clk 0:01:05]} 40. c5 {[%clk 0:00:05]}  Nb3 {[%clk 0:01:05]} 41. Rxb7 {[%clk 0:00:05]}  Nxc5 {[%clk 0:01:05]} 42. Ra7 {[%clk 0:00:05]}  Kg7 {[%clk 0:01:05]} 43. Bd4 {[%clk 0:00:05]}  Ne6 {[%clk 0:01:05]} 44. Bc3 {[%clk 0:00:05]}  Nc5 {[%clk 0:01:05]} 45. Rc7 {[%clk 0:00:04]}  Ne4 {[%clk 0:01:02]} 46. Ba1 {[%clk 0:00:05]}  Kg6 {[%clk 0:01:01]} 47. Kf3 {[%clk 0:00:05]}  Ng5+ {[%clk 0:00:58]} 48. Ke2 {[%clk 0:00:06]}  Ne6 {[%clk 0:00:57]} 49. Ra7 {[%clk 0:00:06]}  Nc5 {[%clk 0:00:57]} 50. Rc7 {[%clk 0:00:06]}  Ne6 {[%clk 0:00:57]} 51. Rc6 {[%clk 0:00:06]}  a5 {[%clk 0:00:58]} 52. Ra6 {[%clk 0:00:06]}  f5 {[%clk 0:00:57]} 53. Rxa5 {[%clk 0:00:06]}  Kg5 {[%clk 0:00:57]} 54. Ra6 {[%clk 0:00:06]}  Kg4 {[%clk 0:00:57]} 55. Ra8 {[%clk 0:00:06]}  Kh3 {[%clk 0:00:57]} 56. Rh8 {[%clk 0:00:07]}  h4 {[%clk 0:00:57]} 57. Bf6 {[%clk 0:00:07]}  Kxh2 {[%clk 0:00:57]} 58. Rxh4+ {[%clk 0:00:08]}  Kg2 {[%clk 0:00:57]} 59. Rh7 {[%clk 0:00:08]}  Nf4+ {[%clk 0:00:57]} 60. Ke1 {[%clk 0:00:07]}  Nd3+ {[%clk 0:00:57]} 61. Ke2 {[%clk 0:00:08]}  Nxf2 {[%clk 0:00:57]} 62. Rg7+ {[%clk 0:00:07]}  Ng4 {[%clk 0:00:57]} 63. Rxf7 {[%clk 0:00:07]}  Kg3 {[%clk 0:00:55]} 64. Bg5 {[%clk 0:00:08]}  Ne5 {[%clk 0:00:40]} 65. Ra7 {[%clk 0:00:08]}  f4 {[%clk 0:00:38]} 66. Ra3+ {[%clk 0:00:08]}  f3+ {[%clk 0:00:38]} 67. Kf1 {[%clk 0:00:08]}  Ng4 {[%clk 0:00:38]} 68. Be3 {[%clk 0:00:08]}  Nh2+ {[%clk 0:00:37]} 69. Ke1 {[%clk 0:00:08]}  Ng4 {[%clk 0:00:36]} 70. Rb3 {[%clk 0:00:08]}  Nxe3 {[%clk 0:00:27]} 71. Rxe3 {[%clk 0:00:07]}  Kg2 {[%clk 0:00:28]} 72. Kd2 {[%clk 0:00:05]}  f2 {[%clk 0:00:28]} 73. Re2 {[%clk 0:00:05]}  Kf3 {[%clk 0:00:27]} 74. Rxf2+ {[%clk 0:00:05]}  Kxf2 {[%clk 0:00:28]} 1/2-1/2


[Site "https://www.chess.com"]

[Event "Titled Tuesday Blitz April 18 Late 2023"]
[White "Jaskolka, Tomasz"]
[Black "Pranav, V"]
[WhiteFideId "1170791"]
[BlackFideId "25060783"]
[WhiteElo "2155"]
[BlackElo "2500"]
[Result "0-1"]
[Round "01"]
[TimeControl "180+2"]
[Date "2023.04.18"]
[WhiteClock "0:00:09"]
[BlackClock "0:01:57"]

1. d4 {[%clk 0:02:57]}  Nf6 {[%clk 0:02:58]} 2. Nc3 {[%clk 0:02:54]}  d5 {[%clk 0:02:58]} 3. Bf4 {[%clk 0:02:53]}  c5 {[%clk 0:02:58]} 4. e4 {[%clk 0:02:52]}  Nxe4 {[%clk 0:02:59]} 5. Nxe4 {[%clk 0:02:52]}  dxe4 {[%clk 0:02:59]} 6. dxc5 {[%clk 0:02:52]}  Nd7 {[%clk 0:02:58]} 7. Qd5 {[%clk 0:02:31]}  e6 {[%clk 0:02:53]} 8. Qxe4 {[%clk 0:02:31]}  Bxc5 {[%clk 0:02:51]} 9. O-O-O {[%clk 0:02:23]}  O-O {[%clk 0:02:47]} 10. Nf3 {[%clk 0:02:17]}  Qa5 {[%clk 0:02:42]} 11. Kb1 {[%clk 0:02:11]}  Nf6 {[%clk 0:02:37]} 12. Qc4 {[%clk 0:01:52]}  e5 {[%clk 0:02:28]} 13. Bd2 {[%clk 0:01:43]}  Qb6 {[%clk 0:02:24]} 14. Bc3 {[%clk 0:01:41]}  Be6 {[%clk 0:02:23]} 15. Qh4 {[%clk 0:01:41]}  Bxf2 {[%clk 0:02:21]} 16. Qg5 {[%clk 0:01:38]}  Ne4 {[%clk 0:02:18]} 17. Qxe5 {[%clk 0:01:35]}  Nxc3+ {[%clk 0:02:18]} 18. Qxc3 {[%clk 0:01:35]}  Rac8 {[%clk 0:02:19]} 19. Qd2 {[%clk 0:01:32]}  Bc5 {[%clk 0:02:14]} 20. Bd3 {[%clk 0:01:31]}  Bb4 {[%clk 0:02:14]} 21. Qf4 {[%clk 0:01:26]}  Bc3 {[%clk 0:02:11]} 22. b3 {[%clk 0:01:24]}  Qa5 {[%clk 0:02:12]} 23. Ng5 {[%clk 0:00:44]}  g6 {[%clk 0:02:10]} 24. Nxe6 {[%clk 0:00:37]}  fxe6 {[%clk 0:02:11]} 25. Qc1 {[%clk 0:00:35]}  Rf2 {[%clk 0:02:06]} 26. Rhf1 {[%clk 0:00:33]}  Rxf1 {[%clk 0:02:04]} 27. Rxf1 {[%clk 0:00:33]}  Bg7 {[%clk 0:02:03]} 28. Qe1 {[%clk 0:00:24]}  Qb6 {[%clk 0:02:00]} 29. Qf2 {[%clk 0:00:18]}  Qc7 {[%clk 0:02:00]} 30. Bc4 {[%clk 0:00:18]}  Qe5 {[%clk 0:01:59]} 31. Qf7+ {[%clk 0:00:17]}  Kh8 {[%clk 0:02:00]} 32. Kc1 {[%clk 0:00:14]}  Rd8 {[%clk 0:01:59]} 33. Bd3 {[%clk 0:00:11]}  Qa1+ {[%clk 0:01:56]} 34. Kd2 {[%clk 0:00:11]}  Bh6+ {[%clk 0:01:56]} 35. Ke2 {[%clk 0:00:11]}  Qe5+ {[%clk 0:01:56]} 36. Kf3 {[%clk 0:00:10]}  Qe3+ {[%clk 0:01:55]} 37. Kg4 {[%clk 0:00:11]}  Rd4+ {[%clk 0:01:55]} 38. Rf4 {[%clk 0:00:08]}  Rxf4+ {[%clk 0:01:56]} 39. Qxf4 {[%clk 0:00:09]}  Qxf4+ {[%clk 0:01:57]} 40. Kh3 {[%clk 0:00:09]}  e5 {[%clk 0:01:57]} 0-1


[Site "https://www.chess.com"]

[Event "Titled Tuesday Blitz April 18 Late 2023"]
[White "Rasulov, Vugar"]
[Black "Koutlas, Nikolaos"]
[WhiteFideId "13402390"]
[BlackFideId "25827138"]
[WhiteElo "2509"]
[BlackElo "2215"]
[Result "1-0"]
[Round "01"]
[TimeControl "180+2"]
[Date "2023.04.18"]
[WhiteClock "0:02:00"]
[BlackClock "0:01:42"]

1. e4 {[%clk 0:03:00]}  c5 {[%clk 0:02:58]} 2. Nf3 {[%clk 0:03:00]}  Nc6 {[%clk 0:02:57]} 3. Bb5 {[%clk 0:03:00]}  g6 {[%clk 0:02:55]} 4. O-O {[%clk 0:03:00]}  Bg7 {[%clk 0:02:55]} 5. Re1 {[%clk 0:03:00]}  Nf6 {[%clk 0:02:54]} 6. e5 {[%clk 0:02:57]}  Nd5 {[%clk 0:02:53]} 7. Nc3 {[%clk 0:02:57]}  Nc7 {[%clk 0:02:53]} 8. Bxc6 {[%clk 0:02:54]}  dxc6 {[%clk 0:02:50]} 9. Ne4 {[%clk 0:02:54]}  b6 {[%clk 0:02:42]} 10. Nf6+ {[%clk 0:02:54]}  Kf8 {[%clk 0:02:40]} 11. Ne4 {[%clk 0:02:55]}  h6 {[%clk 0:02:38]} 12. h3 {[%clk 0:02:54]}  Nd5 {[%clk 0:02:34]} 13. b3 {[%clk 0:02:45]}  Kg8 {[%clk 0:02:33]} 14. Bb2 {[%clk 0:02:45]}  Kh7 {[%clk 0:02:34]} 15. c4 {[%clk 0:02:37]}  Nb4 {[%clk 0:02:32]} 16. Bc3 {[%clk 0:02:32]}  Nd3 {[%clk 0:02:26]} 17. Re3 {[%clk 0:02:31]}  Bf5 {[%clk 0:02:23]} 18. Ng3 {[%clk 0:02:29]}  Be6 {[%clk 0:02:21]} 19. h4 {[%clk 0:02:25]}  Bg4 {[%clk 0:02:14]} 20. Ng5+ {[%clk 0:02:18]}  hxg5 {[%clk 0:02:13]} 21. Qxg4 {[%clk 0:02:19]}  gxh4 {[%clk 0:02:12]} 22. Ne4 {[%clk 0:02:13]}  Kg8 {[%clk 0:02:07]} 23. e6 {[%clk 0:02:11]}  Qf8 {[%clk 0:01:46]} 24. exf7+ {[%clk 0:02:07]}  Qxf7 {[%clk 0:01:46]} 25. Rxd3 {[%clk 0:02:05]}  h3 {[%clk 0:01:43]} 26. Rxh3 {[%clk 0:02:03]}  Bxc3 {[%clk 0:01:42]} 27. dxc3 {[%clk 0:02:00]} 1-0


[Site "https://www.chess.com"]